[Event "*** Titled Tuesday Blitz"]
[Site "Chess.com"]
[Date "2021.02.02"]
[Round "2"]
[White "Azerichess"]
[Black "Frolyanov_D"]
[Result "0-1"]
[WhiteElo "2993"]
[BlackElo "2616"]
[TimeControl "180+1"]
[EndTime "10:20:20 PST"]
[Termination "Frolyanov_D won on time"]

1. d4 {[%clk 0:03:00.9]} 1... d5 {[%clk 0:02:59.4]} 2. c4 {[%clk 0:03:00.8]}
2... e6 {[%clk 0:02:59.2]} 3. Nf3 {[%clk 0:03:00]} 3... Nf6 {[%clk 0:02:58.2]}
4. g3 {[%clk 0:02:57.2]} 4... dxc4 {[%clk 0:02:58.4]} 5. Bg2 {[%clk 0:02:56.6]}
5... Nc6 {[%clk 0:02:58.8]} 6. Qa4 {[%clk 0:02:50.7]} 6... Bb4+ {[%clk
0:02:57.5]} 7. Bd2 {[%clk 0:02:50.6]} 7... Nd5 {[%clk 0:02:57.5]} 8. O-O {[%clk
0:02:42]} 8... Bxd2 {[%clk 0:02:54.9]} 9. Nbxd2 {[%clk 0:02:41.2]} 9... c3
{[%clk 0:02:55.2]} 10. bxc3 {[%clk 0:02:39.2]} 10... Nxc3 {[%clk 0:02:56.1]} 11.
Qc4 {[%clk 0:02:38.6]} 11... Nxd4 {[%clk 0:02:19.8]} 12. Kh1 {[%clk 0:02:38.6]}
12... Nxf3 {[%clk 0:02:10.4]} 13. Nxf3 {[%clk 0:02:39.5]} 13... Nd5 {[%clk
0:02:10]} 14. Rfd1 {[%clk 0:02:27.8]} 14... Qe7 {[%clk 0:02:08.6]} 15. e4 {[%clk
0:02:24.2]} 15... Nb6 {[%clk 0:02:08.1]} 16. Qc3 {[%clk 0:02:14.2]} 16... O-O
{[%clk 0:02:07.1]} 17. a4 {[%clk 0:02:14.8]} 17... a5 {[%clk 0:02:06]} 18. Ne5
{[%clk 0:02:09]} 18... f6 {[%clk 0:01:56.3]} 19. Nd3 {[%clk 0:02:03.9]} 19... e5
{[%clk 0:01:56]} 20. Nc5 {[%clk 0:02:03.9]} 20... Bg4 {[%clk 0:01:37]} 21. f3
{[%clk 0:02:01.8]} 21... Be6 {[%clk 0:01:33.7]} 22. Nxb7 {[%clk 0:02:00.8]}
22... Nc4 {[%clk 0:01:30.2]} 23. Rab1 {[%clk 0:01:44.4]} 23... Rfb8 {[%clk
0:01:21.9]} 24. Bf1 {[%clk 0:01:37.5]} 24... Nd6 {[%clk 0:01:08]} 25. Nxa5
{[%clk 0:01:18.8]} 25... Rxb1 {[%clk 0:01:06.9]} 26. Rxb1 {[%clk 0:01:19.7]}
26... h5 {[%clk 0:01:03.1]} 27. Nc6 {[%clk 0:01:12.4]} 27... Qf7 {[%clk
0:01:02.6]} 28. a5 {[%clk 0:01:12.1]} 28... h4 {[%clk 0:01:00.9]} 29. g4 {[%clk
0:01:10]} 29... Kh7 {[%clk 0:01:00]} 30. a6 {[%clk 0:01:07.9]} 30... Bd7 {[%clk
0:00:50.4]} 31. Nb4 {[%clk 0:00:58.2]} 31... Bb5 {[%clk 0:00:47.9]} 32. Bxb5
{[%clk 0:00:54.3]} 32... Nxb5 {[%clk 0:00:47.9]} 33. Qc6 {[%clk 0:00:54.7]}
33... Rb8 {[%clk 0:00:44.7]} 34. Qd5 {[%clk 0:00:29.9]} 34... Qg6 {[%clk
0:00:40.6]} 35. Qc5 {[%clk 0:00:15.4]} 35... Qg5 {[%clk 0:00:27.4]} 36. Nd5
{[%clk 0:00:09.2]} 36... c6 {[%clk 0:00:22.1]} 37. Qxc6 {[%clk 0:00:04.8]} 37...
Nd4 {[%clk 0:00:22]} 38. Qc1 {[%clk 0:00:03.2]} 38... Rxb1 {[%clk 0:00:19.7]}
39. Qxb1 {[%clk 0:00:02.9]} 39... Nxf3 {[%clk 0:00:14.5]} 40. Qf1 {[%clk
0:00:02.5]} 40... Nd2 {[%clk 0:00:11.3]} 41. Qe2 {[%clk 0:00:01.4]} 41... Nb3
{[%clk 0:00:07.3]} 42. a7 {[%clk 0:00:01.3]} 42... Qc1+ {[%clk 0:00:07.2]} 43.
Kg2 {[%clk 0:00:01.1]} 43... Qa1 {[%clk 0:00:07.1]} 0-1

[Event "*** Titled Tuesday Blitz"]
[Site "Chess.com"]
[Date "2021.02.02"]
[Round "2"]
[White "LubovMarkelova"]
[Black "sakkikuska"]
[Result "1/2-1/2"]
[WhiteElo "2250"]
[BlackElo "2450"]
[TimeControl "180+1"]
[EndTime "10:20:21 PST"]
[Termination "Game drawn by repetition"]

1. Nf3 {[%clk 0:03:00.9]} 1... Nf6 {[%clk 0:02:59.6]} 2. c4 {[%clk 0:03:01.4]}
2... g6 {[%clk 0:03:00]} 3. Nc3 {[%clk 0:03:01.7]} 3... d5 {[%clk 0:03:00.1]} 4.
cxd5 {[%clk 0:02:59.2]} 4... Nxd5 {[%clk 0:03:00.8]} 5. e4 {[%clk 0:02:58.5]}
5... Nxc3 {[%clk 0:03:00.6]} 6. bxc3 {[%clk 0:02:59.4]} 6... Bg7 {[%clk
0:02:59.8]} 7. Bc4 {[%clk 0:02:58.4]} 7... O-O {[%clk 0:02:55.9]} 8. Ba3 {[%clk
0:02:58.4]} 8... c5 {[%clk 0:02:48]} 9. Bxc5 {[%clk 0:02:35.2]} 9... Qc7 {[%clk
0:02:47.4]} 10. d4 {[%clk 0:02:35.2]} 10... Nd7 {[%clk 0:02:44.9]} 11. Qb3
{[%clk 0:01:50.1]} 11... Nxc5 {[%clk 0:02:40.7]} 12. dxc5 {[%clk 0:01:51]} 12...
Qxc5 {[%clk 0:02:41]} 13. O-O {[%clk 0:01:49.4]} 13... Bg4 {[%clk 0:02:40.1]}
14. Nd4 {[%clk 0:01:33.8]} 14... Rac8 {[%clk 0:02:36]} 15. Bd5 {[%clk
0:01:30.5]} 15... Qxc3 {[%clk 0:02:30.7]} 16. Qxc3 {[%clk 0:01:12.3]} 16... Rxc3
{[%clk 0:02:31.6]} 17. h3 {[%clk 0:00:52.9]} 17... Bxh3 {[%clk 0:02:00.6]} 18.
gxh3 {[%clk 0:00:50.6]} 18... Bxd4 {[%clk 0:01:59.8]} 19. Bxb7 {[%clk
0:00:48.6]} 19... Rxh3 {[%clk 0:01:58.1]} 20. Kg2 {[%clk 0:00:43.7]} 20... Bxa1
{[%clk 0:01:49.9]} 21. Kxh3 {[%clk 0:00:42.2]} 21... Bd4 {[%clk 0:01:49.4]} 22.
f3 {[%clk 0:00:38.6]} 22... Rb8 {[%clk 0:01:48.3]} 23. Rb1 {[%clk 0:00:32.7]}
23... h5 {[%clk 0:01:46.6]} 24. Rb3 {[%clk 0:00:29]} 24... Kg7 {[%clk
0:01:40.9]} 25. Bd5 {[%clk 0:00:28.9]} 25... Rxb3 {[%clk 0:01:40.3]} 26. axb3
{[%clk 0:00:26.9]} 26... e6 {[%clk 0:01:40.4]} 27. Bc4 {[%clk 0:00:25.7]} 27...
Kf6 {[%clk 0:01:40.4]} 28. f4 {[%clk 0:00:15.5]} 28... Be3 {[%clk 0:01:39.8]}
29. Kg3 {[%clk 0:00:15.1]} 29... Bd2 {[%clk 0:01:09.2]} 30. Kf3 {[%clk 0:00:15]}
30... e5 {[%clk 0:00:53.9]} 31. fxe5+ {[%clk 0:00:14.4]} 31... Ke7 {[%clk
0:00:52.4]} 32. Kg3 {[%clk 0:00:12.6]} 32... g5 {[%clk 0:00:49.6]} 33. Be2
{[%clk 0:00:09.7]} 33... h4+ {[%clk 0:00:48.4]} 34. Kg4 {[%clk 0:00:09.2]} 34...
Ke6 {[%clk 0:00:47.9]} 35. Bc4+ {[%clk 0:00:08.7]} 35... Kxe5 {[%clk 0:00:47.5]}
36. Bxf7 {[%clk 0:00:05.8]} 36... Kxe4 {[%clk 0:00:47.9]} 37. Be6 {[%clk
0:00:05.7]} 37... Ke3 {[%clk 0:00:46.4]} 38. Bf7 {[%clk 0:00:06]} 38... Kf2
{[%clk 0:00:46.5]} 39. Bd5 {[%clk 0:00:06.4]} 39... Kg1 {[%clk 0:00:45.9]} 40.
Bc6 {[%clk 0:00:06.6]} 40... Kf2 {[%clk 0:00:46.2]} 41. Bd5 {[%clk 0:00:06.6]}
41... Bf4 {[%clk 0:00:45]} 42. Bc6 {[%clk 0:00:06.6]} 42... Ke3 {[%clk
0:00:45.3]} 43. Bd5 {[%clk 0:00:06.6]} 43... Kd4 {[%clk 0:00:45.8]} 44. Be6
{[%clk 0:00:06.9]} 44... Ke4 {[%clk 0:00:45.9]} 45. Bf7 {[%clk 0:00:07]} 45...
Bd2 {[%clk 0:00:37.1]} 46. Be6 {[%clk 0:00:07.1]} 46... Ke5 {[%clk 0:00:37]} 47.
Bc8 {[%clk 0:00:07.2]} 47... Ke4 {[%clk 0:00:36.6]} 48. Bd7 {[%clk 0:00:07.4]}
48... Kd3 {[%clk 0:00:37.1]} 49. Be6 {[%clk 0:00:07.2]} 49... Ke2 {[%clk
0:00:37.5]} 50. Bc4+ {[%clk 0:00:07.3]} 50... Kf2 {[%clk 0:00:37.7]} 51. Bd5
{[%clk 0:00:05.9]} 1/2-1/2

[Event "*** Titled Tuesday Blitz"]
[Site "Chess.com"]
[Date "2021.02.02"]
[Round "2"]
[White "Khnykin_Nikolay"]
[Black "Firstov"]
[Result "0-1"]
[WhiteElo "2101"]
[BlackElo "2402"]
[TimeControl "180+1"]
[EndTime "10:20:23 PST"]
[Termination "Firstov won on time"]

1. d4 {[%clk 0:03:00.9]} 1... b6 {[%clk 0:02:59.9]} 2. Nc3 {[%clk 0:02:57.9]}
2... Bb7 {[%clk 0:03:00.8]} 3. Bf4 {[%clk 0:02:57.5]} 3... e6 {[%clk 0:03:00.8]}
4. e4 {[%clk 0:02:52.6]} 4... Bb4 {[%clk 0:03:00]} 5. f3 {[%clk 0:02:50.3]} 5...
f5 {[%clk 0:02:59.2]} 6. exf5 {[%clk 0:02:47.1]} 6... Nh6 {[%clk 0:02:59]} 7.
fxe6 {[%clk 0:02:44.8]} 7... O-O {[%clk 0:02:58.7]} 8. Bxh6 {[%clk 0:02:34.6]}
8... Qh4+ {[%clk 0:02:58.2]} 9. g3 {[%clk 0:02:28.7]} 9... Qxh6 {[%clk
0:02:57.7]} 10. Bg2 {[%clk 0:02:16.6]} 10... dxe6 {[%clk 0:02:42.5]} 11. Qe2
{[%clk 0:02:08]} 11... Nc6 {[%clk 0:02:32.1]} 12. Qd3 {[%clk 0:01:58]} 12...
Rad8 {[%clk 0:02:21.6]} 13. Ne2 {[%clk 0:01:54.1]} 13... Ne5 {[%clk 0:02:06.1]}
14. Qd2 {[%clk 0:01:37.1]} 14... Qxd2+ {[%clk 0:01:12.4]} 15. Kxd2 {[%clk
0:01:35.7]} 15... Bxf3 {[%clk 0:01:12.4]} 16. Bxf3 {[%clk 0:01:29]} 16... Nxf3+
{[%clk 0:01:11.2]} 17. Ke3 {[%clk 0:01:28.7]} 17... Nxd4 {[%clk 0:00:39.5]} 18.
Nxd4 {[%clk 0:01:25.1]} 18... Bc5 {[%clk 0:00:39.6]} 19. Rad1 {[%clk 0:01:22.9]}
19... e5 {[%clk 0:00:38.5]} 20. Ne2 {[%clk 0:00:51.6]} 20... exd4+ {[%clk
0:00:31.2]} 21. Kd3 {[%clk 0:00:31.7]} 21... Rf2 {[%clk 0:00:21.3]} 22. Rhe1
{[%clk 0:00:21]} 22... Rxh2 {[%clk 0:00:19.9]} 23. Kc4 {[%clk 0:00:19.8]} 23...
Re8 {[%clk 0:00:18.1]} 24. Nxd4 {[%clk 0:00:18]} 24... Rxe1 {[%clk 0:00:17.8]}
25. Rxe1 {[%clk 0:00:18]} 25... Bxd4 {[%clk 0:00:18.3]} 26. Kxd4 {[%clk
0:00:18.1]} 26... Rxc2 {[%clk 0:00:18.7]} 27. Re7 {[%clk 0:00:18.1]} 27... Rxb2
{[%clk 0:00:17.5]} 28. Rxc7 {[%clk 0:00:17.3]} 28... Rxa2 {[%clk 0:00:17.6]} 29.
Ke5 {[%clk 0:00:17]} 29... Ra5+ {[%clk 0:00:15.8]} 30. Ke6 {[%clk 0:00:15.9]}
30... h6 {[%clk 0:00:15.9]} 31. Rc8+ {[%clk 0:00:15.1]} 31... Kh7 {[%clk
0:00:15.2]} 32. Rc7 {[%clk 0:00:14.8]} 32... Kg6 {[%clk 0:00:14.2]} 33. Rd7
{[%clk 0:00:12.3]} 33... a6 {[%clk 0:00:14.4]} 34. Rd6 {[%clk 0:00:11.6]} 34...
Rb5 {[%clk 0:00:14]} 35. Kd7+ {[%clk 0:00:11.5]} 35... Kh7 {[%clk 0:00:10.9]}
36. Kc7 {[%clk 0:00:11.1]} 36... a5 {[%clk 0:00:10.1]} 37. Rd4 {[%clk
0:00:08.9]} 37... Rb4 {[%clk 0:00:09.6]} 38. Rd3 {[%clk 0:00:08.7]} 38... a4
{[%clk 0:00:10]} 39. Ra3 {[%clk 0:00:08.8]} 39... b5 {[%clk 0:00:10.5]} 40. Kc6
{[%clk 0:00:08.3]} 40... Rb3 {[%clk 0:00:11]} 41. Ra1 {[%clk 0:00:07.8]} 41...
a3 {[%clk 0:00:11.5]} 42. Kc5 {[%clk 0:00:08]} 42... b4 {[%clk 0:00:12]} 43. Kc4
{[%clk 0:00:08.2]} 43... Rb2 {[%clk 0:00:11.8]} 44. g4 {[%clk 0:00:03.3]} 44...
a2 {[%clk 0:00:12]} 45. Kd3 {[%clk 0:00:01.1]} 45... b3 {[%clk 0:00:11.9]} 46.
Kc3 {[%clk 0:00:01.3]} 46... Rb1 {[%clk 0:00:12]} 0-1

[Event "*** Titled Tuesday Blitz"]
[Site "Chess.com"]
[Date "2021.02.02"]
[Round "2"]
[White "AniJak"]
[Black "Margency"]
[Result "0-1"]
[WhiteElo "2275"]
[BlackElo "2625"]
[TimeControl "180+1"]
[EndTime "10:20:26 PST"]
[Termination "Margency won on time"]

1. e4 {[%clk 0:03:00.9]} 1... c5 {[%clk 0:02:59.9]} 2. Nf3 {[%clk 0:03:00.7]}
2... d6 {[%clk 0:03:00.3]} 3. Bb5+ {[%clk 0:02:59.9]} 3... Nc6 {[%clk
0:03:00.1]} 4. O-O {[%clk 0:02:59.6]} 4... Bd7 {[%clk 0:03:00.4]} 5. Re1 {[%clk
0:02:59.5]} 5... Nf6 {[%clk 0:03:00.7]} 6. c3 {[%clk 0:02:58.9]} 6... a6 {[%clk
0:03:00.8]} 7. Bf1 {[%clk 0:02:58]} 7... Bg4 {[%clk 0:03:00.8]} 8. h3 {[%clk
0:02:57]} 8... Bxf3 {[%clk 0:03:00.6]} 9. Qxf3 {[%clk 0:02:56.2]} 9... e6 {[%clk
0:03:01.2]} 10. d3 {[%clk 0:02:53.5]} 10... Be7 {[%clk 0:03:01.2]} 11. Qg3
{[%clk 0:02:46.5]} 11... O-O {[%clk 0:02:32.1]} 12. Bh6 {[%clk 0:02:33.9]} 12...
Ne8 {[%clk 0:02:28]} 13. Be3 {[%clk 0:02:17.8]} 13... Rc8 {[%clk 0:02:19.8]} 14.
Nd2 {[%clk 0:02:17.4]} 14... d5 {[%clk 0:02:15]} 15. Nf3 {[%clk 0:02:09.4]}
15... Bd6 {[%clk 0:01:51.9]} 16. e5 {[%clk 0:02:08.4]} 16... Be7 {[%clk
0:01:49.5]} 17. d4 {[%clk 0:02:08.6]} 17... cxd4 {[%clk 0:01:47.5]} 18. cxd4
{[%clk 0:02:08.8]} 18... Nb4 {[%clk 0:01:43.2]} 19. Rec1 {[%clk 0:01:51]} 19...
Rxc1 {[%clk 0:01:28.1]} 20. Rxc1 {[%clk 0:01:50.4]} 20... Nxa2 {[%clk
0:01:24.4]} 21. Rd1 {[%clk 0:01:35.9]} 21... g6 {[%clk 0:01:20]} 22. h4 {[%clk
0:01:27.8]} 22... Ng7 {[%clk 0:01:19.4]} 23. Bh6 {[%clk 0:01:25.1]} 23... Nf5
{[%clk 0:01:10.3]} 24. Qf4 {[%clk 0:01:21.2]} 24... Re8 {[%clk 0:01:08.5]} 25.
h5 {[%clk 0:01:17.6]} 25... Nb4 {[%clk 0:00:53.6]} 26. Bg5 {[%clk 0:00:57.3]}
26... Bxg5 {[%clk 0:00:49.3]} 27. Nxg5 {[%clk 0:00:57.3]} 27... h6 {[%clk
0:00:48.1]} 28. Nf3 {[%clk 0:00:54.1]} 28... g5 {[%clk 0:00:47.6]} 29. Qd2
{[%clk 0:00:53.6]} 29... a5 {[%clk 0:00:40.4]} 30. g4 {[%clk 0:00:48]} 30... Ne7
{[%clk 0:00:40.4]} 31. Nxg5 {[%clk 0:00:42.6]} 31... hxg5 {[%clk 0:00:34.3]} 32.
Qxg5+ {[%clk 0:00:42.1]} 32... Kh7 {[%clk 0:00:34.7]} 33. Qf6 {[%clk 0:00:29.6]}
33... Rg8 {[%clk 0:00:13.2]} 34. g5 {[%clk 0:00:17.5]} 34... Nf5 {[%clk
0:00:10.6]} 35. Qxf7+ {[%clk 0:00:17.7]} 35... Rg7 {[%clk 0:00:07.9]} 36. g6+
{[%clk 0:00:17.7]} 36... Kh8 {[%clk 0:00:07.9]} 37. Qxe6 {[%clk 0:00:17.6]}
37... Qg5+ {[%clk 0:00:08]} 38. Bg2 {[%clk 0:00:17.7]} 38... Nh4 {[%clk
0:00:07]} 39. Qh3 {[%clk 0:00:13.1]} 39... Qxh5 {[%clk 0:00:07.1]} 40. Rc1
{[%clk 0:00:11.2]} 40... Rxg6 {[%clk 0:00:06.5]} 41. Rc8+ {[%clk 0:00:10.4]}
41... Kh7 {[%clk 0:00:06.9]} 42. Rc7+ {[%clk 0:00:09.7]} 42... Rg7 {[%clk
0:00:06.4]} 43. Rxg7+ {[%clk 0:00:05.9]} 43... Kxg7 {[%clk 0:00:06.7]} 44. Qd7+
{[%clk 0:00:04.4]} 44... Kh6 {[%clk 0:00:06.9]} 45. Qd6+ {[%clk 0:00:02.1]}
45... Qg6 {[%clk 0:00:05.2]} 46. Qf8+ {[%clk 0:00:01.5]} 46... Kg5 {[%clk
0:00:05.2]} 0-1

[Event "*** Titled Tuesday Blitz"]
[Site "Chess.com"]
[Date "2021.02.02"]
[Round "2"]
[White "alexrustemov"]
[Black "r31415"]
[Result "1-0"]
[WhiteElo "2774"]
[BlackElo "2507"]
[TimeControl "180+1"]
[EndTime "10:20:27 PST"]
[Termination "alexrustemov won on time"]

1. d4 {[%clk 0:03:00.9]} 1... Nf6 {[%clk 0:03:00.1]} 2. Nf3 {[%clk 0:03:00.5]}
2... g6 {[%clk 0:03:00.5]} 3. c4 {[%clk 0:03:01.1]} 3... Bg7 {[%clk 0:03:00.8]}
4. g3 {[%clk 0:03:01.8]} 4... O-O {[%clk 0:03:00.4]} 5. Bg2 {[%clk 0:03:02.4]}
5... c6 {[%clk 0:03:00.6]} 6. O-O {[%clk 0:03:00]} 6... d5 {[%clk 0:03:00.8]} 7.
b3 {[%clk 0:03:00.6]} 7... a5 {[%clk 0:02:59.8]} 8. Nc3 {[%clk 0:02:59.7]} 8...
Ne4 {[%clk 0:02:57.5]} 9. Bb2 {[%clk 0:02:59.7]} 9... Nxc3 {[%clk 0:02:48.1]}
10. Bxc3 {[%clk 0:03:00.6]} 10... a4 {[%clk 0:02:48.7]} 11. e3 {[%clk
0:02:56.5]} 11... Bf5 {[%clk 0:02:42.8]} 12. Qe2 {[%clk 0:02:54.6]} 12... Nd7
{[%clk 0:02:31.5]} 13. Rfd1 {[%clk 0:02:54.1]} 13... Qb6 {[%clk 0:02:21.4]} 14.
Nd2 {[%clk 0:02:39.5]} 14... Bc2 {[%clk 0:02:14.8]} 15. Rdc1 {[%clk 0:02:37.7]}
15... axb3 {[%clk 0:01:58.1]} 16. axb3 {[%clk 0:02:37.2]} 16... Rxa1 {[%clk
0:01:49.8]} 17. Rxa1 {[%clk 0:02:25.4]} 17... Nf6 {[%clk 0:01:35.7]} 18. c5
{[%clk 0:02:12.5]} 18... Qc7 {[%clk 0:01:31.9]} 19. b4 {[%clk 0:02:12.9]} 19...
b5 {[%clk 0:01:26.8]} 20. cxb6 {[%clk 0:02:09.1]} 20... Qxb6 {[%clk 0:01:26.2]}
21. Qa6 {[%clk 0:02:09.7]} 21... Rb8 {[%clk 0:01:23.4]} 22. Qxb6 {[%clk
0:02:09.1]} 22... Rxb6 {[%clk 0:01:23.5]} 23. Ra8+ {[%clk 0:02:09.6]} 23... Bf8
{[%clk 0:01:23.8]} 24. f3 {[%clk 0:02:04.7]} 24... Kg7 {[%clk 0:01:19.6]} 25. e4
{[%clk 0:02:02.1]} 25... e6 {[%clk 0:01:19]} 26. Ra2 {[%clk 0:01:56.5]} 26...
Bd3 {[%clk 0:01:14.8]} 27. Rb2 {[%clk 0:01:54.9]} 27... Nd7 {[%clk 0:01:08]} 28.
Kf2 {[%clk 0:01:52.1]} 28... Nb8 {[%clk 0:00:59.9]} 29. Ke3 {[%clk 0:01:52.1]}
29... Ba6 {[%clk 0:01:00.3]} 30. g4 {[%clk 0:01:29]} 30... Bb7 {[%clk 0:00:58]}
31. Bf1 {[%clk 0:01:23]} 31... Ba6 {[%clk 0:00:57.2]} 32. Bg2 {[%clk 0:01:09.9]}
32... Bc8 {[%clk 0:00:56.9]} 33. Bf1 {[%clk 0:00:48.1]} 33... f5 {[%clk
0:00:56.1]} 34. gxf5 {[%clk 0:00:45.3]} 34... gxf5 {[%clk 0:00:56.1]} 35. Bd3
{[%clk 0:00:42]} 35... Kf6 {[%clk 0:00:55.1]} 36. Nb3 {[%clk 0:00:35.7]} 36...
Bxb4 {[%clk 0:00:38.2]} 37. Nd2 {[%clk 0:00:35.2]} 37... Ba5 {[%clk 0:00:25]}
38. Rc2 {[%clk 0:00:30.8]} 38... Bxc3 {[%clk 0:00:14]} 39. Rxc3 {[%clk
0:00:31.7]} 39... Na6 {[%clk 0:00:14.4]} 40. Nb3 {[%clk 0:00:31.4]} 40... Nb4
{[%clk 0:00:12.4]} 41. Nc5 {[%clk 0:00:30.2]} 41... Na6 {[%clk 0:00:06.9]} 42.
Bxa6 {[%clk 0:00:29.2]} 42... Bxa6 {[%clk 0:00:06.6]} 43. Ra3 {[%clk 0:00:28.2]}
43... Bc8 {[%clk 0:00:06.1]} 44. e5+ {[%clk 0:00:27.2]} 44... Ke7 {[%clk
0:00:05.8]} 45. Ra8 {[%clk 0:00:27.1]} 45... Kd8 {[%clk 0:00:05.6]} 46. Ra7
{[%clk 0:00:26.4]} 46... h6 {[%clk 0:00:03.7]} 47. Rh7 {[%clk 0:00:26.4]} 47...
Rb1 {[%clk 0:00:03.6]} 48. Rxh6 {[%clk 0:00:26.5]} 48... Ke7 {[%clk 0:00:02.9]}
49. Rh7+ {[%clk 0:00:26.4]} 49... Kd8 {[%clk 0:00:02.7]} 50. h4 {[%clk
0:00:26.5]} 50... Re1+ {[%clk 0:00:02.6]} 51. Kf4 {[%clk 0:00:26.3]} 51... Rd1
{[%clk 0:00:02.5]} 52. Ke3 {[%clk 0:00:26.6]} 52... Re1+ {[%clk 0:00:02.6]} 53.
Kd2 {[%clk 0:00:27.1]} 53... Rf1 {[%clk 0:00:02.5]} 54. Ke2 {[%clk 0:00:27.1]}
54... Rh1 {[%clk 0:00:02.3]} 55. h5 {[%clk 0:00:27.7]} 55... Rh4 {[%clk
0:00:01.9]} 56. h6 {[%clk 0:00:26.9]} 1-0

[Event "*** Titled Tuesday Blitz"]
[Site "Chess.com"]
[Date "2021.02.02"]
[Round "2"]
[White "J36225"]
[Black "rachidhuilda"]
[Result "1-0"]
[WhiteElo "2443"]
[BlackElo "2219"]
[TimeControl "180+1"]
[EndTime "10:20:27 PST"]
[Termination "J36225 won by checkmate"]

1. e4 {[%clk 0:03:00.9]} 1... c5 {[%clk 0:02:59.1]} 2. Nf3 {[%clk 0:03:00.6]}
2... e6 {[%clk 0:02:59]} 3. d4 {[%clk 0:02:58.9]} 3... cxd4 {[%clk 0:02:59.1]}
4. Nxd4 {[%clk 0:02:59.8]} 4... a6 {[%clk 0:02:59.5]} 5. c4 {[%clk 0:02:59.4]}
5... Nf6 {[%clk 0:02:46.9]} 6. Nc3 {[%clk 0:02:58.5]} 6... Bb4 {[%clk
0:02:44.4]} 7. Qd3 {[%clk 0:02:58.1]} 7... Nc6 {[%clk 0:02:22.4]} 8. Nxc6 {[%clk
0:02:48.6]} 8... dxc6 {[%clk 0:02:21.9]} 9. Qxd8+ {[%clk 0:02:47.9]} 9... Kxd8
{[%clk 0:02:22.2]} 10. Bg5 {[%clk 0:02:46.7]} 10... h6 {[%clk 0:01:42.3]} 11.
Bxf6+ {[%clk 0:02:43.6]} 11... gxf6 {[%clk 0:01:41.6]} 12. O-O-O+ {[%clk
0:02:44.1]} 12... Ke7 {[%clk 0:01:39.9]} 13. Kc2 {[%clk 0:02:42.6]} 13... e5
{[%clk 0:01:35.1]} 14. f3 {[%clk 0:02:41.2]} 14... Be6 {[%clk 0:01:35.1]} 15.
Bd3 {[%clk 0:02:40.3]} 15... Rhg8 {[%clk 0:01:33.1]} 16. Rd2 {[%clk 0:02:39.9]}
16... Rad8 {[%clk 0:01:31.3]} 17. Rhd1 {[%clk 0:02:38.7]} 17... h5 {[%clk
0:01:30.3]} 18. a3 {[%clk 0:02:37.6]} 18... Bxc3 {[%clk 0:01:14.5]} 19. Kxc3
{[%clk 0:02:37.4]} 19... h4 {[%clk 0:01:11.5]} 20. c5 {[%clk 0:02:32.2]} 20...
Rg7 {[%clk 0:00:56.5]} 21. Bf1 {[%clk 0:02:29.2]} 21... Rxd2 {[%clk 0:00:55.3]}
22. Rxd2 {[%clk 0:02:30]} 22... f5 {[%clk 0:00:54.9]} 23. b4 {[%clk 0:02:22.1]}
23... fxe4 {[%clk 0:00:54]} 24. fxe4 {[%clk 0:02:22.2]} 24... f5 {[%clk
0:00:50.7]} 25. exf5 {[%clk 0:02:20]} 25... Bxf5 {[%clk 0:00:50.9]} 26. a4
{[%clk 0:02:18]} 26... Be6 {[%clk 0:00:47.6]} 27. Re2 {[%clk 0:02:07.8]} 27...
Kf6 {[%clk 0:00:43.4]} 28. Rf2+ {[%clk 0:02:05.4]} 28... Ke7 {[%clk 0:00:43.6]}
29. b5 {[%clk 0:01:27]} 29... axb5 {[%clk 0:00:43]} 30. axb5 {[%clk 0:01:26.6]}
30... cxb5 {[%clk 0:00:40.6]} 31. Kb4 {[%clk 0:01:26.8]} 31... Bd5 {[%clk
0:00:40.3]} 32. Kxb5 {[%clk 0:01:23.6]} 32... Bc6+ {[%clk 0:00:40.2]} 33. Kb6
{[%clk 0:01:22.9]} 33... Rg4 {[%clk 0:00:40]} 34. Rb2 {[%clk 0:00:55]} 34... Ke6
{[%clk 0:00:29.7]} 35. g3 {[%clk 0:00:42.7]} 35... hxg3 {[%clk 0:00:29.2]} 36.
Bh3 {[%clk 0:00:42.6]} 36... Kf5 {[%clk 0:00:24.8]} 37. hxg3 {[%clk 0:00:38.8]}
37... Kg5 {[%clk 0:00:22.2]} 38. Bxg4 {[%clk 0:00:38.8]} 38... Kxg4 {[%clk
0:00:23.1]} 39. Rb3 {[%clk 0:00:39.1]} 39... Bf3 {[%clk 0:00:12.2]} 40. Re3
{[%clk 0:00:37]} 40... e4 {[%clk 0:00:08.2]} 41. Kxb7 {[%clk 0:00:36.9]} 41...
Kxg3 {[%clk 0:00:08.9]} 42. c6 {[%clk 0:00:36.2]} 42... Kf4 {[%clk 0:00:09.3]}
43. c7 {[%clk 0:00:28.4]} 43... Kxe3 {[%clk 0:00:08.7]} 44. c8=Q {[%clk
0:00:28.5]} 44... Kf2 {[%clk 0:00:09.1]} 45. Qc2+ {[%clk 0:00:27.2]} 45... Ke3
{[%clk 0:00:08]} 46. Qc3+ {[%clk 0:00:27.1]} 46... Kf2 {[%clk 0:00:07.6]} 47.
Qd2+ {[%clk 0:00:26.2]} 47... Be2 {[%clk 0:00:06.1]} 48. Qf4+ {[%clk 0:00:21.9]}
48... Bf3 {[%clk 0:00:04.8]} 49. Qh2+ {[%clk 0:00:21.9]} 49... Ke1 {[%clk
0:00:04.1]} 50. Kb6 {[%clk 0:00:17.7]} 50... e3 {[%clk 0:00:04]} 51. Kc5 {[%clk
0:00:17.1]} 51... e2 {[%clk 0:00:04.3]} 52. Kd4 {[%clk 0:00:17.4]} 52... Kd1
{[%clk 0:00:04]} 53. Kd3 {[%clk 0:00:13.3]} 53... e1=Q {[%clk 0:00:04.9]} 54.
Qc2# {[%clk 0:00:12.6]} 1-0